fUSD/lending_fUSD_20251212
["ID","MTS","AMOUNT","RATE_DAILY","PERIOD"]
[398332605,1765537988308,-535.99,0.00039178,30]
[398332606,1765537988317,-1647.96,0.00039178,30]
[398332607,1765537988327,-500.0,0.00039178,30]
[398332608,1765537988336,-500.0,0.00039178,30]
[398332609,1765537988346,-500.0,0.00039178,30]
[398332610,1765537988355,-500.0,0.00039178,30]
[398332611,1765537988365,-1607.35,0.00039178,30]
[398332612,1765537988375,-500.0,0.00039178,30]
[398332613,1765537988384,-1890.33,0.00039178,30]
[398332614,1765537988394,-500.0,0.00039178,30]
[398332615,1765537988403,-500.0,0.00039178,30]
[398332616,1765537988412,-702.35,0.00039178,30]
[398332617,1765537988421,-506.51132986,0.00039178,30]
[398332618,1765537988431,-1448.32,0.00039178,30]
[398332619,1765537988440,-1632.19,0.00039178,30]
[398332620,1765537988450,-500.0,0.00039178,30]
[398332621,1765537988459,-500.0,0.00039178,30]
[398332622,1765537988468,-876.83,0.00039178,30]
[398332623,1765537988478,-832.79,0.00039178,30]
[398332624,1765537988487,-500.0,0.00039178,30]
[398332625,1765537988496,-500.0,0.00039178,30]
[398332626,1765537988505,-234.14398189,0.00039178,30]
[398332627,1765537988515,-623.5,0.00039178,30]
[398332628,1765537988525,-500.0,0.00039178,30]
[398332629,1765537988534,-500.0,0.00039178,30]
[398332630,1765537988543,-2761.6,0.00039178,30]
[398332631,1765537988553,-604.56,0.00039178,30]
[398332632,1765537988562,-769.61,0.00039178,30]
[398332633,1765537988571,-1014.43,0.00039178,30]
[398332634,1765537988581,-506.3778537,0.00039178,30]
[398332635,1765537988590,-500.0,0.00039178,30]
[398332636,1765537988600,-500.0,0.00039178,30]
[398332637,1765537988610,-500.0,0.00039178,30]
[398332638,1765537988619,-500.0,0.00039178,30]
[398332639,1765537988628,-500.0,0.00039178,30]
[398332640,1765537988638,-799.32,0.00039178,30]
[398332641,1765537988647,-977.53,0.00039178,30]
[398332642,1765537988656,-500.0,0.00039178,30]
[398332643,1765537988666,-500.0,0.00039178,30]
[398332644,1765537988675,-1062.18,0.00039178,30]
[398332645,1765537988685,-882.68,0.00039178,30]
[398332646,1765537988695,-502.48,0.00039178,30]
[398332647,1765537988705,-500.0,0.00039178,30]
[398332648,1765537988714,-500.0,0.00039178,30]
[398332649,1765537988724,-500.0,0.00039178,30]
[398332650,1765537988733,-204.99978093,0.00039178,30]
[398332651,1765537988743,-500.0,0.00039178,30]
[398332652,1765537988752,-907.2,0.00039178,30]
[398332653,1765537988762,-500.0,0.00039178,30]
[398332654,1765537988771,-566.21,0.00039178,30]
[398332655,1765537988781,-786.93,0.00039178,30]
[398332656,1765537988790,-1677.04,0.00039178,30]
[398332657,1765537988800,-1523.05,0.00039178,30]
[398332658,1765537988810,-342.83960281,0.00039178,30]
[398332659,1765537988820,-500.0,0.00039178,30]
[398332660,1765537988829,-623.75,0.00039178,30]
[398332661,1765537988840,-646.21,0.00039178,30]
[398332662,1765537988852,-500.0,0.00039178,30]
[398332663,1765537988862,-500.0,0.00039178,30]
[398332664,1765537988871,-500.0,0.00039178,30]
[398332665,1765537988881,-500.0,0.00039178,30]
[398332666,1765537988891,-850.56,0.00039178,30]
[398332667,1765537988903,-506.59,0.00039178,30]
[398332668,1765537988913,-2457.1,0.00039178,30]
[398332669,1765537988923,-1824.58,0.00039178,30]
[398332670,1765537988932,-500.0,0.00039178,30]
[398332671,1765537988942,-593.38,0.00039178,30]
[398332672,1765537988952,-500.0,0.00039178,30]
[398332673,1765537988962,-500.0,0.00039178,30]
[398332674,1765537988971,-500.0,0.00039178,30]
[398332675,1765537988981,-500.0,0.00039178,30]
[398332676,1765537988991,-2498.97,0.00039178,30]
[398332677,1765537989001,-937.73,0.00039178,30]
[398332678,1765537989011,-500.0,0.00039178,30]
[398332679,1765537989022,-500.0,0.00039178,30]
[398332680,1765537989032,-500.0,0.00039178,30]
[398332681,1765537989041,-500.0,0.00039178,30]
[398332682,1765537989051,-7728.61,0.00039178,30]
[398332683,1765537989061,-500.0,0.00039178,30]
[398332684,1765537989071,-500.0,0.00039178,30]
[398332685,1765537989080,-500.0,0.00039178,30]
[398332686,1765537989090,-500.0,0.00039178,30]
[398332687,1765537989100,-521.3,0.00039178,30]
[398332688,1765537989109,-5162.44,0.00039178,30]
[398332689,1765537989119,-500.0,0.00039178,30]
[398332690,1765537989129,-2045.54,0.00039178,30]
[398332691,1765537989138,-4512.65,0.00039178,30]
[398332692,1765537989147,-500.0,0.00039178,30]
[398332693,1765537989157,-2044.49,0.00039178,30]
[398332694,1765537989167,-500.0,0.00039178,30]
[398332695,1765537989176,-500.0,0.00039178,30]
[398332696,1765537989186,-803.09,0.00039178,30]
[398332697,1765537989196,-500.0,0.00039178,30]
[398332698,1765537989205,-500.0,0.00039178,30]
[398332699,1765537989215,-500.0,0.00039178,30]
[398332700,1765537989225,-880.62,0.00039178,30]
[398332701,1765537989235,-500.0,0.00039178,30]
[398332702,1765537989245,-1055.54,0.00039178,30]
[398332703,1765537989254,-500.0,0.00039178,30]
[398332704,1765537989264,-1170.58,0.00039178,30]
[398332705,1765537989274,-2563.76,0.00039178,30]
[398332706,1765537989283,-500.0,0.00039178,30]
[398332707,1765537989293,-3132.56,0.00039178,30]
[398332708,1765537989303,-647.8,0.00039178,30]
[398332709,1765537989312,-920.56,0.00039178,30]
[398332710,1765537989322,-500.0,0.00039178,30]
[398332711,1765537989332,-1267.04,0.00039178,30]
[398332712,1765537989342,-500.0,0.00039178,30]
[398332713,1765537989351,-1034.08,0.00039178,30]
[398332714,1765537989361,-500.0,0.00039178,30]
[398332715,1765537989371,-500.0,0.00039178,30]
[398332716,1765537989381,-500.0,0.00039178,30]
[398332717,1765537989391,-500.0,0.00039178,30]
[398332718,1765537989402,-500.0,0.00039178,30]
[398332719,1765537989415,-500.0,0.00039178,30]
[398332720,1765537989427,-636.17,0.00039178,30]
[398332721,1765537989436,-534.23,0.00039178,30]
[398332722,1765537989446,-500.0,0.00039178,30]
[398332723,1765537989455,-9205.7,0.00039178,30]
[398332724,1765537989464,-2487.95,0.00039178,14]
[398332725,1765537989474,-852.0,0.00039178,30]
[398332726,1765537989483,-1627.24,0.00039178,30]
[398332727,1765537989493,-500.0,0.00039178,30]
[398332728,1765537989502,-709.82,0.00039178,30]
[398332729,1765537989512,-500.0,0.00039178,30]
[398332730,1765537989521,-500.0,0.00039178,30]
[398332731,1765537989531,-9937.58,0.00039178,30]
[398332732,1765537989541,-1228.02,0.00039178,30]
[398332733,1765537989551,-727.84,0.00039178,30]
[398332734,1765537989560,-508.79273936,0.00039178,30]
[398332735,1765537989570,-500.0,0.00039178,30]
[398332736,1765537989579,-500.0,0.00039178,30]
[398332737,1765537989589,-2584.59,0.00039178,30]
[398332738,1765537989599,-3111.31,0.00039178,30]
[398332739,1765537989610,-938.28,0.00039178,30]
[398332740,1765537989620,-500.0,0.00039178,30]
[398332741,1765537989629,-500.0,0.00039178,30]
[398332742,1765537989640,-500.0,0.00039178,30]
[398332743,1765537989650,-724.94,0.00039178,30]
[398332744,1765537989660,-2254.56,0.00039178,30]
[398332745,1765537989669,-500.0,0.00039178,30]
[398332746,1765537989679,-899.02,0.00039178,30]
[398332747,1765537989689,-922.78,0.00039178,30]
[398332748,1765537989698,-500.0,0.00039178,30]
[398332749,1765537989707,-500.0,0.00039178,30]
[398332750,1765537989720,-670.8,0.00039178,30]
[398332751,1765537989735,-730.51,0.00039178,30]
[398332752,1765537989745,-500.0,0.00039178,30]
[398332753,1765537989756,-500.0,0.00039178,30]
[398332754,1765537989766,-890.92,0.00039178,30]
[398332755,1765537989778,-1306.66,0.00039178,30]
[398332756,1765537989790,-500.0,0.00039178,30]
[398332757,1765537989800,-500.0,0.00039178,30]
[398332758,1765537989810,-500.0,0.00039178,30]
[398332759,1765537989823,-949.39,0.00039178,30]
[398332760,1765537989834,-1193.64,0.00039178,30]
[398332761,1765537989846,-667.64,0.00039178,30]
[398332762,1765537989859,-1105.53,0.00039178,30]
[398332763,1765537989868,-500.0,0.00039178,30]
[398332764,1765537989878,-500.0,0.00039178,30]
[398332765,1765537989889,-500.0,0.00039178,30]
[398332766,1765537989899,-1566.37,0.00039178,30]
[398332767,1765537989909,-691.31,0.00039178,30]
[398332768,1765537989919,-504.35627277,0.00039178,30]
[398332769,1765537989930,-986.5,0.00039178,30]
[398332770,1765537989939,-2660.16,0.00039178,30]
[398332771,1765537989950,-500.0,0.00039178,30]
[398332772,1765537989959,-677.72,0.00039178,30]
[398332773,1765537989971,-500.0,0.00039178,30]
[398332774,1765537989981,-1062.51,0.00039178,30]
[398332775,1765537989991,-500.0,0.00039178,30]
[398332776,1765537990002,-1023.2,0.00039178,30]
[398332777,1765537990012,-765.14,0.00039178,30]
[398332778,1765537990022,-2249.34,0.00039178,30]
[398332779,1765537990032,-541.12,0.00039178,30]
[398332780,1765537990042,-641.4,0.00039178,30]
[398332781,1765537990052,-500.0,0.00039178,30]
[398332782,1765537990062,-500.0,0.00039178,30]
[398332783,1765537990073,-2149.98,0.00039178,30]
[398332784,1765537990083,-500.0,0.00039178,30]
[398332785,1765537990093,-1066.93,0.00039178,30]
[398332786,1765537990102,-500.0,0.00039178,30]
[398332787,1765537990112,-500.0,0.00039178,30]
[398332788,1765537990122,-500.0,0.00039178,30]
[398332789,1765537990132,-1794.3,0.00039178,30]
[398332790,1765537990142,-500.0,0.00039178,30]
[398332791,1765537990152,-6024.98,0.00039178,30]
[398332792,1765537990162,-500.0,0.00039178,30]
[398332793,1765537990172,-500.0,0.00039178,30]
[398332794,1765537990182,-652.45,0.00039178,30]
[398332795,1765537990191,-584.74,0.00039178,30]
[398332796,1765537990201,-168.03182346,0.00039178,30]
[398332797,1765537990210,-500.0,0.00039178,30]
[398332798,1765537990220,-500.0,0.00039178,30]
[398332799,1765537990229,-1595.92,0.00039178,30]
[398332800,1765537990239,-920.72,0.00039178,30]
[398332801,1765537990249,-1243.86,0.00039178,30]
[398332802,1765537990259,-500.0,0.00039178,30]
[398332803,1765537990268,-616.65,0.00039178,30]
[398332804,1765537990278,-3185.29,0.00039178,30]
[398332805,1765537990287,-500.0,0.00039178,30]
[398332806,1765537990297,-1899.74,0.00039178,30]
[398332807,1765537990307,-767.47,0.00039178,30]
[398332808,1765537990318,-500.0,0.00039178,30]
[398332809,1765537990328,-500.0,0.00039178,30]
[398332810,1765537990338,-3636.79,0.00039178,30]
[398332811,1765537990348,-1218.06,0.00039178,30]
[398332812,1765537990364,-1283.24,0.00039178,30]
[398332813,1765537990374,-500.0,0.00039178,30]
[398332814,1765537990385,-500.0,0.00039178,30]
[398332815,1765537990395,-500.0,0.00039178,30]
[398332816,1765537990406,-3032.18,0.00039178,30]
[398332817,1765537990417,-500.0,0.00039178,30]
[398332818,1765537990428,-616.0,0.00039178,30]
[398332819,1765537990438,-1329.42,0.00039178,30]
[398332820,1765537990448,-500.0,0.00039178,30]
[398332821,1765537990459,-500.0,0.00039178,30]
[398332822,1765537990470,-638.79,0.00039178,30]
[398332823,1765537990480,-500.0,0.00039178,30]
[398332824,1765537990491,-500.0,0.00039178,30]
[398332825,1765537990501,-500.0,0.00039178,30]
[398332826,1765537990512,-500.0,0.00039178,30]
[398332827,1765537990523,-950.53,0.00039178,30]
[398332828,1765537990534,-664.16,0.00039178,30]
[398332829,1765537990544,-500.0,0.00039178,30]
[398332830,1765537990555,-1066.97,0.00039178,30]
[398332831,1765537990565,-599.13,0.00039178,30]
[398332832,1765537990576,-500.0,0.00039178,30]
[398332833,1765537990586,-1433.51,0.00039178,30]
[398332834,1765537990597,-500.0,0.00039178,30]
[398332835,1765537990608,-6840.01,0.00039178,30]
[398332836,1765537990620,-2849.13,0.00039178,30]
[398332837,1765537990631,-500.0,0.00039178,30]
[398332838,1765537990642,-500.0,0.00039178,30]
[398332839,1765537990652,-214.74,0.00039178,30]
[398332840,1765537990664,-642.56,0.00039178,30]
[398332841,1765537990675,-500.0,0.00039178,30]
[398332842,1765537990686,-500.0,0.00039178,30]
[398332843,1765537990696,-2147.05,0.00039178,30]
[398332844,1765537990712,-434.99562636,0.00039178,30]
[398332845,1765537990725,-6708.51,0.00039178,30]
[398332846,1765537990736,-500.0,0.00039178,30]
[398332847,1765537990747,-1746.8,0.00039178,30]
[398332848,1765537990758,-500.0,0.00039178,30]
[398332849,1765537990769,-504.60525251,0.00039178,30]
[398332850,1765537990779,-1135.94,0.00039178,30]
[398332851,1765537990790,-1293.36,0.00039178,30]
[398332852,1765537990801,-500.0,0.00039178,30]
[398332853,1765537990815,-500.0,0.00039178,30]
[398332854,1765537990826,-500.0,0.00039178,30]
[398332855,1765537990838,-500.0,0.00039178,30]
[398332856,1765537990853,-1510.63,0.00039178,30]
[398332857,1765537990864,-205.4322687,0.00039178,30]
[398332858,1765537990876,-500.0,0.00039178,30]
[398332859,1765537990887,-500.0,0.00039178,30]
[398332860,1765537990899,-911.19,0.00039178,30]
[398332861,1765537990922,-500.0,0.00039178,30]
[398332862,1765537990934,-2130.63,0.00039178,30]
[398332863,1765537991351,-500.0,0.00039178,30]
[398332864,1765537991365,-1011.94,0.00039178,30]
[398332865,1765537991375,-1929.57,0.00039178,30]
[398332866,1765537991384,-1120.09,0.00039178,30]
[398332867,1765537991395,-657.48,0.00039178,30]
[398332868,1765537991404,-732.14,0.00039178,30]
[398332869,1765537991413,-4030.69,0.00039178,30]
[398332870,1765537991423,-500.0,0.00039178,30]
[398332871,1765537991432,-500.0,0.00039178,30]
[398332872,1765537991442,-995.54,0.00039178,30]
[398332873,1765537991451,-1083.81,0.00039178,30]
[398332874,1765537991461,-726.94,0.00039178,30]
[398332875,1765537991471,-3238.19,0.00039178,30]
[398332876,1765537991481,-500.0,0.00039178,30]
[398332877,1765537991490,-2367.27,0.00039178,30]
[398332878,1765537991500,-608.27,0.00039178,30]
[398332879,1765537991510,-500.0,0.00039178,30]
[398332880,1765537991520,-500.0,0.00039178,30]
[398332881,1765537991530,-500.0,0.00039178,30]
[398332882,1765537991539,-583.32,0.00039178,30]
[398332883,1765537991549,-500.0,0.00039178,30]
[398332884,1765537991560,-500.0,0.00039178,30]
[398332885,1765537991569,-625.74,0.00039178,30]
[398332886,1765537991579,-500.0,0.00039178,30]
[398332887,1765537991588,-500.0,0.00039178,30]
[398332888,1765537991598,-500.0,0.00039178,30]
[398332889,1765537991608,-2843.71,0.00039178,30]
[398332890,1765537991617,-1329.63,0.00039178,30]
[398332891,1765537991627,-500.0,0.00039178,30]
[398332892,1765537991637,-500.0,0.00039178,30]
[398332893,1765537991647,-605.17,0.00039178,30]
[398332894,1765537991657,-500.0,0.00039178,30]
[398332895,1765537991667,-677.17,0.00039178,30]
[398332896,1765537991676,-610.47,0.00039178,30]
[398332897,1765537991686,-1219.89,0.00039178,30]
[398332898,1765537991695,-500.0,0.00039178,30]
[398332899,1765537991705,-1003.5,0.00039178,30]
[398332900,1765537991715,-658.88,0.00039178,30]
[398332901,1765537991724,-621.26,0.00039178,30]
[398332902,1765537991735,-500.0,0.00039178,30]
[398332903,1765537991744,-510.29425528,0.00039178,30]
[398332904,1765537991755,-500.0,0.00039178,30]
[398332905,1765537991764,-500.0,0.00039178,30]
[398332906,1765537991774,-2089.28,0.00039178,30]
[398332907,1765537991784,-500.0,0.00039178,30]
[398332908,1765537991794,-777.33,0.00039178,30]
[398332909,1765537991804,-500.0,0.00039178,30]
[398332910,1765537991813,-500.0,0.00039178,30]
[398332911,1765537991823,-500.0,0.00039178,30]
[398332912,1765537991833,-506.96,0.00039178,30]
[398332913,1765537991846,-600.44,0.00039178,30]
[398332914,1765537991856,-500.0,0.00039178,30]
[398332915,1765537991866,-557.42,0.00039178,30]
[398332916,1765537991876,-500.0,0.00039178,30]
[398332917,1765537991886,-610.54,0.00039178,30]
[398332918,1765537991896,-349.99602631,0.00039178,30]
[398332919,1765537991905,-516.74,0.00039178,30]
[398332920,1765537991916,-500.0,0.00039178,15]
[398332921,1765537991926,-759.14,0.00039178,30]
[398332922,1765537991935,-571.0,0.00039178,30]
[398332923,1765537991945,-588.85,0.00039178,30]
[398332924,1765537991955,-1161.86,0.00039178,30]
[398332925,1765537991964,-1044.6,0.00039178,30]
[398332926,1765537991974,-2199.62,0.00039178,30]
[398332927,1765537991984,-500.0,0.00039178,30]
[398332928,1765537991994,-500.0,0.00039178,30]
[398332929,1765537992004,-503.79,0.00039178,30]
[398332930,1765537992014,-500.0,0.00039178,30]
[398332931,1765537992023,-500.0,0.00039178,30]
[398332932,1765537992033,-500.0,0.00039178,30]
[398332933,1765537992043,-500.0,0.00039178,30]
[398332934,1765537992054,-500.0,0.00039178,30]
[398332935,1765537992063,-809.01,0.00039178,30]
[398332936,1765537992074,-719.27,0.00039178,30]
[398332937,1765537992084,-500.0,0.00039178,30]
[398332938,1765537992094,-578.6,0.00039178,30]
[398332939,1765537992104,-500.0,0.00039178,30]
[398332940,1765537992114,-2620.34,0.00039178,30]
[398332941,1765537992123,-1731.68,0.00039178,30]
[398332942,1765537992133,-517.1,0.00039178,30]
[398332943,1765537992143,-2018.77,0.00039178,30]
[398332944,1765537992153,-500.0,0.00039178,30]
[398332945,1765537992162,-822.61,0.00039178,30]
[398332946,1765537992172,-500.0,0.00039178,30]
[398332947,1765537992181,-500.0,0.00039178,30]
[398332948,1765537992191,-511.8,0.00039178,30]
[398332949,1765537992200,-500.0,0.00039178,30]
[398332950,1765537992210,-1929.49,0.00039178,30]
[398332951,1765537992219,-1245.76,0.00039178,30]
[398332952,1765537992228,-500.0,0.00039178,30]
[398332953,1765537992238,-477.69435778,0.00039178,30]
[398332954,1765537992247,-629.76,0.00039178,30]
[398332955,1765537992257,-500.0,0.00039178,30]
[398332956,1765537992266,-507.05013008,0.00039178,30]
[398332957,1765537992276,-504.87,0.00039178,30]
[398332958,1765537992285,-2747.32,0.00039178,30]
[398332959,1765537992295,-3082.74,0.00039178,30]
[398332960,1765537992304,-500.0,0.00039178,30]
[398332961,1765537992313,-1765.66,0.00039178,30]
[398332962,1765537992323,-992.27,0.00039178,30]
[398332963,1765537992332,-669.73,0.00039178,30]
[398332964,1765537992341,-810.69,0.00039178,30]
[398332965,1765537992351,-1342.66,0.00039178,30]
[398332966,1765537992360,-500.0,0.00039178,30]
[398332967,1765537992369,-500.0,0.00039178,30]
[398332968,1765537992378,-682.03,0.00039178,30]
[398332969,1765537992387,-648.8,0.00039178,30]
[398332970,1765537992396,-1864.3,0.00039178,30]
[398332971,1765537992406,-500.0,0.00039178,30]
[398332972,1765537992415,-500.0,0.00039178,30]
[398332973,1765537992425,-627.5117533,0.00039178,30]
[398332974,1765537992435,-689.18,0.00039178,30]
[398332975,1765537992445,-598.31,0.00039178,30]
[398332976,1765537992454,-792.27,0.00039178,30]
[398332977,1765537992463,-2535.84,0.00039178,30]
[398332978,1765537992472,-500.0,0.00039178,30]
[398332979,1765537992483,-500.0,0.00039178,30]
[398332980,1765537992492,-1454.84,0.00039178,30]
[398332981,1765537992501,-500.0,0.00039178,30]
[398332982,1765537992510,-500.0,0.00039178,30]
[398332983,1765537992519,-500.0,0.00039178,30]
[398332984,1765537992528,-836.48,0.00039178,30]
[398332985,1765537992537,-500.0,0.00039178,30]
[398332986,1765537992547,-630.54,0.00039178,30]
[398332987,1765537992556,-542.7,0.00039178,30]
[398332988,1765537992565,-500.0,0.00039178,30]
[398332989,1765537992575,-625.15,0.00039178,30]
[398332990,1765537992584,-2978.69,0.00039178,30]
[398332991,1765537992593,-500.0,0.00039178,30]
[398332992,1765537992602,-500.0,0.00039178,30]
[398332993,1765537992612,-566.99,0.00039178,30]
[398332994,1765537992621,-501.3,0.00039178,30]
[398332995,1765537992631,-500.0,0.00039178,30]
[398332996,1765537992641,-1577.35,0.00039178,30]
[398332997,1765537992650,-500.0,0.00039178,30]
[398332998,1765537992659,-500.0,0.00039178,30]
[398332999,1765537992668,-716.61,0.00039178,30]
[398333000,1765537992677,-500.0,0.00039178,30]
[398333001,1765537992687,-603.95108573,0.00039178,30]
[398333002,1765537992696,-500.0,0.00039178,30]
[398333003,1765537992705,-2248.13,0.00039178,30]
[398333004,1765537992714,-556.61,0.00039178,30]
[398333005,1765537992723,-500.0,0.00039178,30]
[398333006,1765537992732,-500.0,0.00039178,30]
[398333007,1765537992741,-1673.77,0.00039178,30]
[398333008,1765537992750,-500.0,0.00039178,30]
[398333009,1765537992759,-2331.84,0.00039178,30]
[398333010,1765537992768,-1028.79,0.00039178,30]
[398333011,1765537992777,-2147.02,0.00039178,30]
[398333012,1765537992786,-1527.47,0.00039178,30]
[398333013,1765537992795,-500.0,0.00039178,30]
[398333014,1765537992804,-500.28,0.00039178,30]
[398333015,1765537992814,-500.0,0.00039178,30]
[398333016,1765537992823,-504.89646222,0.00039178,30]
[398333017,1765537992832,-1715.19,0.00039178,30]
[398333018,1765537992844,-594.01,0.00039178,30]
[398333019,1765537992854,-1740.0,0.00039178,30]
[398333020,1765537992863,-567.29,0.00039178,30]
[398333021,1765537992872,-500.0,0.00039178,30]
[398333022,1765537992881,-633.47,0.00039178,30]
[398333023,1765537992890,-2330.09,0.00039178,30]
[398333024,1765537992899,-500.0,0.00039178,30]
[398333025,1765537992908,-1444.41,0.00039178,30]
[398333026,1765537992918,-500.0,0.00039178,30]
[398333027,1765537992928,-500.0,0.00039178,30]
[398333028,1765537992938,-527.63,0.00039178,30]
[398333029,1765537992947,-518.05752767,0.00039178,30]
[398333030,1765537992957,-563.14,0.00039178,30]
[398333031,1765537992966,-588.23,0.00039178,30]
[398333032,1765537992976,-500.0,0.00039178,30]
[398333033,1765537992987,-500.0,0.00039178,30]
[398333034,1765537992997,-500.0,0.00039178,30]
[398333035,1765537993006,-1747.95,0.00039178,30]
[398333036,1765537993015,-500.0,0.00039178,30]
[398333037,1765537993025,-763.9,0.00039178,30]
[398333038,1765537993034,-500.0,0.00039178,30]
[398333039,1765537993044,-500.0,0.00039178,30]
[398333040,1765537993055,-818.9,0.00039178,30]
[398333041,1765537993064,-972.17,0.00039178,30]
[398333042,1765537993074,-573.6,0.00039178,30]
[398333043,1765537993084,-556.13,0.00039178,30]
[398333044,1765537993093,-500.0,0.00039178,30]
[398333045,1765537993103,-666.96,0.00039178,30]
[398333046,1765537993112,-500.0,0.00039178,30]
[398333047,1765537993121,-500.0,0.00039178,30]
[398333048,1765537993130,-1283.05,0.00039178,30]
[398333049,1765537993140,-477.52328246,0.00039178,30]
[398333050,1765537993149,-798.2,0.00039178,30]
[398333051,1765537993158,-500.0,0.00039178,30]
[398333052,1765537993168,-561.17976479,0.00039178,30]
[398333053,1765537993178,-6586.39,0.00039178,30]
[398333054,1765537993187,-989.92,0.00039178,30]
[398333055,1765537993196,-500.0,0.00039178,30]
[398333056,1765537993206,-500.0,0.00039178,30]
[398333057,1765537993215,-502.68,0.00039178,30]
[398333058,1765537993225,-500.0,0.00039178,30]
[398333059,1765537993235,-500.0,0.00039178,30]
[398333060,1765537993244,-500.0,0.00039178,30]
[398333061,1765537993254,-629.07401511,0.00039178,30]
[398333062,1765537993263,-500.0,0.00039178,30]
[398333063,1765537993273,-709.01,0.00039178,30]
[398333064,1765537993283,-500.0,0.00039178,30]
[398333065,1765537993292,-500.0,0.00039178,30]
[398333066,1765537993302,-1180.74,0.00039178,30]
[398333067,1765537993312,-529.51,0.00039178,30]
[398333068,1765537993322,-589.52,0.00039178,30]
[398333069,1765537993331,-500.0,0.00039178,30]
[398333070,1765537993340,-500.0,0.00039178,30]
[398333071,1765537993350,-500.0,0.00039178,30]
[398333072,1765537993359,-566.34598843,0.00039178,30]
[398333073,1765537993369,-500.0,0.00039178,30]
[398333074,1765537993379,-500.0,0.00039178,30]
[398333075,1765537993389,-720.32,0.00039178,30]
[398333076,1765537993398,-509.99,0.00039178,30]
[398333077,1765537993407,-500.0,0.00039178,30]
[398333078,1765537993417,-752.38,0.00039178,30]
[398333079,1765537993427,-500.0,0.00039178,30]
[398333080,1765537993436,-899.81,0.00039178,30]
[398333081,1765537993446,-500.0,0.00039178,30]
[398333082,1765537993456,-500.0,0.00039178,30]
[398333083,1765537993465,-634.12,0.00039178,30]
[398333084,1765537993475,-1738.8,0.00039178,30]
[398333085,1765537993485,-500.0,0.00039178,30]
[398333086,1765537993494,-500.0,0.00039178,30]
[398333087,1765537993504,-622.13,0.00039178,30]
[398333088,1765537993514,-500.0,0.00039178,30]
[398333089,1765537993523,-10008.33,0.00039178,30]
[398333090,1765537993533,-500.0,0.00039178,30]
[398333091,1765537993543,-1816.12,0.00039178,30]
[398333092,1765537993552,-1222.19,0.00039178,30]
[398333093,1765537993562,-500.0,0.00039178,30]
[398333094,1765537993572,-853.5,0.00039178,30]
[398333095,1765537993582,-506.67,0.00039178,30]
[398333096,1765537993591,-614.15,0.00039178,30]
[398333097,1765537993601,-500.0,0.00039178,30]
[398333098,1765537993610,-867.61,0.00039178,30]
[398333099,1765537993620,-642.79,0.00039178,30]
[398333100,1765537993639,-500.0,0.00039178,30]
[398333101,1765537993658,-1730.62,0.00039178,30]
[398333102,1765537993678,-500.0,0.00039178,30]
[398333103,1765537993697,-500.0,0.00039178,30]
[398333104,1765537993713,-500.0,0.00039178,30]